Workbook

Sheet Récapitulatif
B12: Commande équipements Girou Triathlon
B21: Nom : | H21: Nb de pièces : | I21: =SUM(I34:I58) -> 0
B23: Prénom | H23: Montant Total : | I23: =SUM(J34:K58) -> 0
B29: Détail Commande
B33: DESIGNATION | I33: QTE | J33: PRIX TOTAL

Sheet Guide des tailles
B4: Vous pouvez consulter le guide des tailles pour Champion System à l'adresse suivante :
B6: http://france.champ-sys.com/cycling/our-sizing/
B9: Pour les vêtements JOULY, voir le tableau ci-dessous.

Sheet DATA (hidden)
A2: Ligne Départ Récap | B2: 34
A3: Index Récap | B3: 0
A4: QTE Produits | B4: =COUNTA(A11:A504) -> 36
A10: Feuille | B10: Sous produit | C10: Produit | D10: Ligne Départ | E10: XS | F10: S | G10: M | H10: L | I10: XL | J10: XXL | K10: XXXL | L10: XXXXL | M10: QTE | N10: PUHT | O10: Prix Unitaire | P10: Prix Total
A11: Triathlon | B11: TRI FONCTION | C11: Performance Classic Tri Suit | D11: 7 | E11: D | F11: E | G11: F | H11: G | I11: H | J11: I | K11: J | L11: K | M11: L | N11: M | O11: N | P11: O
A12: Triathlon | B12: TRI FONCTION | C12: Performance Link Tri Suit | D12: =D11+3 -> 10 | E12: D | F12: E | G12: F | H12: G | I12: H | J12: I | K12: J | L12: K | M12: L | N12: M | O12: N | P12: O
A13: Triathlon | B13: TRI FONCTION | C13: Performance Blade Tri Suit | D13: =D12+3 -> 13 | E13: D | F13: E | G13: F | H13: G | I13: H | J13: I | K13: J | L13: K | M13: L | N13: M | O13: N | P13: O
A14: Triathlon | B14: TRI FONCTION | C14: Apex Link Tri Suit | D14: 16 | E14: D | F14: E | G14: F | H14: G | I14: H | J14: I | K14: J | L14: K | M14: L | N14: M | O14: N | P14: O
A15: Triathlon | B15: TRI FONCTION | C15: Apex Blade Tri Suit | D15: 19 | E15: D | F15: E | G15: F | H15: G | I15: H | J15: I | K15: J | L15: K | M15: L | N15: M | O15: N | P15: O
A16: Triathlon | B16: TRI FONCTION | C16: Elite Tri Suit | D16: 22 | E16: D | F16: E | G16: F | H16: G | I16: H | J16: I | K16: J | L16: K | M16: L | N16: M | O16: N | P16: O
A17: Triathlon | B17: TRI FONCTION | C17: Elite Woman's Specific Tri Suit | D17: 25 | E17: D | F17: E | G17: F | H17: G | I17: H | J17: I | K17: J | L17: K | M17: L | N17: M | O17: N | P17: O
A18: Triathlon | B18: TRI FONCTION | C18: Elite Woman's Tri Swimsuit | D18: 28 | E18: D | F18: E | G18: F | H18: G | I18: H | J18: I | K18: J | L18: K | M18: L | N18: M | O18: N | P18: O
A19: Triathlon | B19: Ensemble Haut | C19: Performance Link Tri Top | D19: 36 | E19: D | F19: E | G19: F | H19: G | I19: H | J19: I | K19: J | L19: K | M19: L | N19: M | O19: N | P19: O
A20: Triathlon | B20: Ensemble Haut | C20: Performance Blade Tri Top | D20: =D19+3 -> 39 | E20: D | F20: E | G20: F | H20: G | I20: H | J20: I | K20: J | L20: K | M20: L | N20: M | O20: N | P20: O
A21: Triathlon | B21: Ensemble Haut | C21: Apex Link Tri Top | D21: =D20+3 -> 42 | E21: D | F21: E | G21: F | H21: G | I21: H | J21: I | K21: J | L21: K | M21: L | N21: M | O21: N | P21: O
A22: Triathlon | B22: Ensemble Haut | C22: Apex Blade Tri Top | D22: 45 | E22: D | F22: E | G22: F | H22: G | I22: H | J22: I | K22: J | L22: K | M22: L | N22: M | O22: N | P22: O
A23: Triathlon | B23: Ensemble Bas | C23: Performance Link Tri Short | D23: 49 | E23: D | F23: E | G23: F | H23: G | I23: H | J23: I | K23: J | L23: K | M23: L | N23: M | O23: N | P23: O
A24: Triathlon | B24: Ensemble Bas | C24: Performance Blade Tri Short | D24: =D23+3 -> 52 | E24: D | F24: E | G24: F | H24: G | I24: H | J24: I | K24: J | L24: K | M24: L | N24: M | O24: N | P24: O
A25: Triathlon | B25: Ensemble Bas | C25: Apex Link Tri Short | D25: =D24+3 -> 55 | E25: D | F25: E | G25: F | H25: G | I25: H | J25: I | K25: J | L25: K | M25: L | N25: M | O25: N | P25: O
A26: Triathlon | B26: Ensemble Bas | C26: Apex Blade Tri Short | D26: 58 | E26: D | F26: E | G26: F | H26: G | I26: H | J26: I | K26: J | L26: K | M26: L | N26: M | O26: N | P26: O
A27: Running | B27: Running | C27: Tee Shirt Manche courte - Apex Men's Run Top Crew Neck | D27: 7 | E27: D | F27: E | G27: F | H27: G | I27: H | J27: I | K27: J | L27: K | M27: L | N27: M | O27: N | P27: O
A28: Running | B28: Running | C28: Tee Shirt Manche longue - Long Sleeve Performance Run Top | D28: =D27+4 -> 11 | E28: D | F28: E | G28: F | H28: G | I28: H | J28: I | K28: J | L28: K | M28: L | N28: M | O28: N | P28: O
A29: Running | B29: Running | C29: Tee-shirt sans macnhes - Apex Men's Marathon Singlet | D29: =D28+4 -> 15 | E29: D | F29: E | G29: F | H29: G | I29: H | J29: I | K29: J | L29: K | M29: L | N29: M | O29: N | P29: O
A30: Running | B30: Running | C30: Veste running - Apex Men's Run Top Crew Neck | D30: =D29+4 -> 19 | E30: D | F30: E | G30: F | H30: G | I30: H | J30: I | K30: J | L30: K | M30: L | N30: M | O30: N | P30: O
A31: Running | B31: Running | C31: Cuissard court - Lycra Training Short | D31: 23 | E31: D | F31: E | G31: F | H31: G | I31: H | J31: I | K31: J | L31: K | M31: L | N31: M | O31: N | P31: O
A32: Running | B32: Running | C32: Cuissard long - Lycra Run Tight | D32: 27 | E32: D | F32: E | G32: F | H32: G | I32: H | J32: I | K32: J | L32: K | M32: L | N32: M | O32: N | P32: O
A33: Cyclisme Hauts | B33: Cyclisme Hauts | C33: Maillot manches courtes avec Zip Integral (Jouly) | D33: 7 | E33: D | F33: E | G33: F | H33: G | I33: H | J33: I | K33: J | L33: K | M33: L | N33: M | O33: N | P33: O
A34: Cyclisme Hauts | B34: Cyclisme Hauts | C34: Maillot sans manche avec Zip Integral - CS TECH Sleeveless Jersey | D34: =D33+4 -> 11 | E34: D | F34: E | G34: F | H34: G | I34: H | J34: I | K34: J | L34: K | M34: L | N34: M | O34: N | P34: O
A35: Cyclisme Hauts | B35: Cyclisme Hauts | C35: Maillot manches longues avec Zip Integral (Jouly) | D35: =D34+4 -> 15 | E35: D | F35: E | G35: F | H35: G | I35: H | J35: I | K35: J | L35: K | M35: L | N35: M | O35: N | P35: O
A36: Cyclisme Hauts | B36: Cyclisme Hauts | C36: Maillot manches longues Thermo Shield avec Zip Integral - CS TECH Fleece Long Sleeve Jersey | D36: 19 | E36: D | F36: E | G36: F | H36: G | I36: H | J36: I | K36: J | L36: K | M36: L | N36: M | O36: N | P36: O
A37: Cyclisme Vestes | B37: Cyclisme Vestes | C37: Gilet coupe-vent sans manches - (Jouly) | D37: 7 | E37: D | F37: E | G37: F | H37: G | I37: H | J37: I | K37: J | L37: K | M37: L | N37: M | O37: N | P37: O
A38: Cyclisme Vestes | B38: Cyclisme Vestes | C38: Veste coupe-vent - (Jouly) | D38: =D37+4 -> 11 | E38: D | F38: E | G38: F | H38: G | I38: H | J38: I | K38: J | L38: K | M38: L | N38: M | O38: N | P38: O
A39: Cyclisme Vestes | B39: Cyclisme Vestes | C39: Gilet sans manche thermique - CS ThermoShield Winter Vest | D39: =D38+4 -> 15 | E39: D | F39: E | G39: F | H39: G | I39: H | J39: I | K39: J | L39: K | M39: L | N39: M | O39: N | P39: O
A40: Cyclisme Vestes | B40: Cyclisme Vestes | C40: Veste thermique hiver - (Jouly) | D40: 19 | E40: D | F40: E | G40: F | H40: G | I40: H | J40: I | K40: J | L40: K | M40: L | N40: M | O40: N | P40: O
A41: Cyclisme Vestes | B41: Cyclisme Vestes | C41: Veste de pluie transparente (K-Way) - CS Seamless Clear Rain Jacket | D41: 23 | E41: D | F41: E | G41: F | H41: G | I41: H | J41: I | K41: J | L41: K | M41: L | N41: M | O41: N | P41: O
A42: Cyclisme Bas | B42: Cyclisme Bas | C42: Cuissard court avec bretelles - (Jouly) | D42: 7 | E42: D | F42: E | G42: F | H42: G | I42: H | J42: I | K42: J | L42: K | M42: L | N42: M | O42: N | P42: O
A43: Cyclisme Bas | B43: Cyclisme Bas | C43: Cuissard long hiver avec bretelles - (Jouly) | D43: =D42+4 -> 11 | E43: D | F43: E | G43: F | H43: G | I43: H | J43: I | K43: J | L43: K | M43: L | N43: M | O43: N | P43: O
A44: Cyclisme Bas | B44: Cyclisme Bas | C44: Cuissard corssaire avec bretelles - (Jouly) | D44: =D43+4 -> 15 | E44: D | F44: E | G44: F | H44: G | I44: H | J44: I | K44: J | L44: K | M44: L | N44: M | O44: N | P44: O
A45: Sportwear | B45: Sportwear | C45: Sweet Capuche Girou Taymory (Tarif club 2015) | D45: 7 | E45: D | F45: E | G45: F | H45: G | I45: H | J45: I | K45: J | L45: K | M45: L | N45: M | O45: N | P45: O
A46: Sportwear | B46: Sportwear | C46: Sweet Capuche Girou Taymory | D46: 11 | E46: D | F46: E | G46: F | H46: G | I46: H | J46: I | K46: J | L46: K | M46: L | N46: M | O46: N | P46: O

Sheet Triathlon
A2: TRI FONCTION
D5: XS | E5: S | F5: M | G5: L | H5: XL | I5: XXL | J5: XXXL | K5: XXXXL | L5: Quantité | M5: Prix Unit ht | N5: Prix Unitaire | O5: Prix Total
A6: Performance Classic Tri Suit
C7: HOMME | L7: =SUM(D7:K7) -> 0 | M7: 66 | N7: =M7*1.2 -> 79.2 | O7: =(L7*N7) -> 0
C8: FEMME | L8: =SUM(D8:K8) -> 0 | M8: 66 | N8: =M8*1.2 -> 79.2 | O8: =(L8*N8) -> 0
A9: Performance Link Tri Suit
C10: HOMME | L10: =SUM(D10:K10) -> 0 | M10: 105 | N10: =M10*1.2 -> 126 | O10: =(L10*N10) -> 0
C11: FEMME | L11: 0 | M11: 105 | N11: =M11*1.2 -> 126 | O11: 0
A12: Performance Blade Tri Suit
C13: HOMME | L13: =SUM(D13:K13) -> 0 | M13: 105 | N13: =M13*1.2 -> 126 | O13: =(L13*N13) -> 0
C14: FEMME | L14: 0 | M14: 105 | N14: =M14*1.2 -> 126 | O14: 0
A15: Apex Link Tri Suit
C16: HOMME | L16: =SUM(D16:K16) -> 0 | M16: 115 | N16: =M16*1.2 -> 138 | O16: =(L16*N16) -> 0
C17: FEMME | L17: 0 | M17: 115 | N17: =M17*1.2 -> 138 | O17: 0
A18: Apex Blade Tri Suit
C19: HOMME | L19: =SUM(D19:K19) -> 0 | M19: 115 | N19: =M19*1.2 -> 138 | O19: =(L19*N19) -> 0
C20: FEMME | L20: 0 | M20: 115 | N20: =M20*1.2 -> 138 | O20: 0
A21: Elite Tri Suit
C22: HOMME | L22: =SUM(D22:K22) -> 0 | M22: 135 | N22: =M22*1.2 -> 162 | O22: =(L22*N22) -> 0
C23: FEMME | L23: 0 | M23: 135 | N23: =M23*1.2 -> 162 | O23: 0
A24: Elite Woman's Specific Tri Suit
C25: HOMME
C26: FEMME | L26: =SUM(D26:K26) -> 0 | M26: 135 | N26: =M26*1.2 -> 162 | O26: =(L26*N26) -> 0
A27: Elite Woman's Tri Swimsuit
C28: HOMME
C29: FEMME | L29: =SUM(D29:K29) -> 0 | M29: 75 | N29: =M29*1.2 -> 90 | O29: =(L29*N29) -> 0
A31: Ensemble Haut (Top) / Bas (Short)
D34: XS | E34: S | F34: M | G34: L | H34: XL | I34: XXL | J34: XXXL | K34: XXXXL | L34: Quantité | M34: Prix Unit ht | N34: Prix Unitaire | O34: Prix Total
A35: Performance Link Tri Top
C36: HOMME | L36: =SUM(D36:K36) -> 0 | M36: 35 | N36: =M36*1.2 -> 42 | O36: =(L36*N36) -> 0
C37: FEMME | L37: 0 | M37: 35 | N37: 42 | O37: =(L37*N37) -> 0
A38: Performance Blade Tri Top
C39: HOMME | L39: =SUM(D39:K39) -> 0 | M39: 43 | N39: =M39*1.2 -> 51.6 | O39: =(L39*N39) -> 0
C40: FEMME | L40: 0 | M40: 43 | N40: 51.6 | O40: =(L40*N40) -> 0
A41: Apex Link Tri Top | M41: 55 | N41: =M41*1.2 -> 66 | O41: =(L42*N41) -> 0
C42: HOMME | L42: =SUM(D42:K42) -> 0 | M42: 55 | N42: 66 | O42: =(L42*N42) -> 0
C43: FEMME | L43: 0 | M43: 55 | N43: 66 | O43: =(L43*N43) -> 0
A44: Apex Blade Tri Top | M44: 58 | N44: =M44*1.2 -> 69.6 | O44: =(L45*N44) -> 0
C45: HOMME | L45: =SUM(D45:K45) -> 0 | M45: 58 | N45: 69.6 | O45: =(L45*N45) -> 0
C46: FEMME | L46: 0 | M46: 58 | N46: 69.6 | O46: =(L46*N46) -> 0
A48: Performance Link Tri Short | M48: 35 | N48: =M48*1.2 -> 42 | O48: =(L49*N48) -> 0
C49: HOMME | L49: =SUM(D49:K49) -> 0 | M49: 35 | N49: 42 | O49: =(L49*N49) -> 0
C50: FEMME | L50: 0 | M50: 35 | N50: 42 | O50: =(L50*N50) -> 0
A51: Performance Blade Tri Short | M51: 43 | N51: =M51*1.2 -> 51.6 | O51: =(L52*N51) -> 0
C52: HOMME | L52: =SUM(D52:K52) -> 0 | M52: 43 | N52: 51.6 | O52: =(L52*N52) -> 0
C53: FEMME | L53: 0 | M53: 43 | N53: 51.6 | O53: =(L53*N53) -> 0
A54: Apex Link Tri Short | M54: 53 | N54: =M54*1.2 -> 63.6 | O54: =(L55*N54) -> 0
C55: HOMME | L55: =SUM(D55:K55) -> 0 | M55: 53 | N55: 63.6 | O55: =(L55*N55) -> 0
C56: FEMME | L56: 0 | M56: 53 | N56: 63.6 | O56: =(L56*N56) -> 0
A57: Apex Blade Tri Short | M57: 55 | N57: =M57*1.2 -> 66 | O57: =(L58*N57) -> 0
C58: HOMME | L58: =SUM(D58:K58) -> 0 | M58: 55 | N58: 66 | O58: =(L58*N58) -> 0
C59: FEMME | L59: 0 | M59: 55 | N59: 66 | O59: =(L59*N59) -> 0
L62: =SUM(L7:L8,L10:L11,L13:L14,L16:L17,L19:L20,L22:L23,L26,L29,L36:L37,L39:L40,L42:L43,L45:L46,L49:L50,L52:L53,L55:L56,L58:L59) -> 0 | O62: =SUM(O7:O8,O10:O11,O13:O14,O16:O17,O19:O20,O22:O23,O26,O29,O36:O37,O39:O40,O42:O43,O45:O46,O49:O50,O52:O53,O55:O56,O58:O59) -> 0

Sheet Running
A2: RUNNING
D5: XS | E5: S | F5: M | G5: L | H5: XL | I5: XXL | J5: XXXL | K5: XXXXL | L5: Quantité | M5: Prix Unit ht | N5: Prix Unitaire | O5: Prix Total
A6: Tee-Shirt Manches courtes - Apex Men's Run Top Crew Neck
C7: HOMME | L7: =SUM(D7:K7) -> 0 | M7: 31 | N7: =M7*1.2 -> 37.2 | O7: =(L7*N7) -> 0
C8: FEMME | L8: =SUM(D8:K8) -> 0 | M8: 31 | N8: =M8*1.2 -> 37.2 | O8: =(L8*N8) -> 0
A10: Tee-Shirt Manches longues - Long Sleeve Performance Run Top
C11: HOMME | L11: =SUM(D11:K11) -> 0 | M11: 33 | N11: =M11*1.2 -> 39.6 | O11: =(L11*N11) -> 0
C12: FEMME | L12: =SUM(D12:K12) -> 0 | M12: 33 | N12: 39.6 | O12: 0
A14: Tee-shirt sans manches - Apex Men's Marathon Singlet
C15: HOMME | L15: =SUM(D15:K15) -> 0 | M15: 30 | N15: =M15*1.2 -> 36 | O15: =(L15*N15) -> 0
C16: FEMME | L16: =SUM(D16:K16) -> 0 | M16: 30 | N16: 36 | O16: 0
A18: Veste running - Apex WindGuard Run Jacket
C19: HOMME | L19: =SUM(D19:K19) -> 0 | M19: 47 | N19: =M19*1.2 -> 56.4 | O19: =(L19*N19) -> 0
C20: FEMME | L20: =SUM(D20:K20) -> 0 | M20: 47 | N20: 56.4 | O20: 0
A22: Cuissard court - Lycra Training Short
C23: HOMME | L23: =SUM(D23:K23) -> 0 | M23: 31 | N23: =M23*1.2 -> 37.2 | O23: =(L23*N23) -> 0
C24: FEMME | L24: =SUM(D24:K24) -> 0 | M24: 31 | N24: 37.2 | O24: 0
A26: Cuissard long - Lycra Run Tight
C27: HOMME | L27: =SUM(D27:K27) -> 0 | M27: 43 | N27: =M27*1.2 -> 51.6 | O27: =(L27*N27) -> 0
C28: FEMME | L28: =SUM(D28:K28) -> 0 | M28: 43 | N28: 51.6 | O28: 0
L31: =SUM(L1:L30) -> 0 | O31: =SUM(O1:O30) -> 0

Sheet Cyclisme Hauts
A2: CYCLISME - HAUTS
D5: XS | E5: S | F5: M | G5: L | H5: XL | I5: XXL | J5: XXXL | K5: XXXXL | L5: Quantité | M5: Prix Unit ht | N5: Prix Unitaire | O5: Prix Total
A6: Maillot manches courtes avec Zip Integral (Jouly) | C6: (coupe EU)
C7: HOMME | L7: =SUM(D7:K7) -> 0 | M7: 37.5 | N7: =M7*1.2 -> 45 | O7: =(L7*N7) -> 0
C8: FEMME | L8: =SUM(D8:K8) -> 0 | M8: 37.5 | N8: =M8*1.2 -> 45 | O8: =(L8*N8) -> 0
A10: Maillot sans manches avec Zip Integral - CS TECH Sleeveless Jersey (Champion System)
C11: HOMME | L11: =SUM(D11:K11) -> 0 | M11: 29 | N11: =M11*1.2 -> 34.8 | O11: =(L11*N11) -> 0
C12: FEMME | L12: =SUM(D12:K12) -> 0 | M12: 29 | N12: =M12*1.2 -> 34.8 | O12: =(L12*N12) -> 0
A14: Maillot manches longues avec Zip Integral (Jouly)
C15: HOMME | L15: =SUM(D15:K15) -> 0 | M15: 48.33 | N15: =M15*1.2 -> 57.996 | O15: =(L15*N15) -> 0
C16: FEMME | L16: =SUM(D16:K16) -> 0 | M16: 48.33 | N16: =M16*1.2 -> 57.996 | O16: =(L16*N16) -> 0
A18: Maillot manches longues Thermo Shield avec Zip Integral - CS TECH Fleece Long Sleeve Jersey (Champion System)
C19: HOMME | L19: =SUM(D19:K19) -> 0 | M19: 50 | N19: =M19*1.2 -> 60 | O19: =(L19*N19) -> 0
C20: FEMME | L20: =SUM(D20:K20) -> 0 | M20: 50 | N20: =M20*1.2 -> 60 | O20: =(L20*N20) -> 0
L23: =SUM(L1:L22) -> 0 | O23: =SUM(O1:O22) -> 0

Sheet Cyclisme Bas
A2: CYCLISME - BAS
D5: XS | E5: S | F5: M | G5: L | H5: XL | I5: XXL | J5: XXXL | K5: XXXXL | L5: Quantité | M5: Prix Unit ht | N5: Prix Unitaire | O5: Prix Total
A6: Cuissard court avec bretelles - (Jouly)
C7: HOMME | L7: =SUM(D7:K7) -> 0 | M7: 40 | N7: =M7*1.2 -> 48 | O7: =(L7*N7) -> 0
C8: FEMME | L8: =SUM(D8:K8) -> 0 | M8: 40 | N8: =M8*1.2 -> 48 | O8: =(L8*N8) -> 0
A10: Cuissard long hiver avec bretelles - (Jouly)
C11: HOMME | L11: =SUM(D11:K11) -> 0 | M11: 52.5 | N11: =M11*1.2 -> 63 | O11: =(L11*N11) -> 0
C12: FEMME | L12: =SUM(D12:K12) -> 0 | M12: 52.5 | N12: =M12*1.2 -> 63 | O12: =(L12*N12) -> 0
A14: Cuissard corssaire avec bretelles - (Jouly)
C15: HOMME | L15: =SUM(D15:K15) -> 0 | M15: 39.17 | N15: =M15*1.2 -> 47.004 | O15: =(L15*N15) -> 0
C16: FEMME | L16: =SUM(D16:K16) -> 0 | M16: 39.17 | N16: =M16*1.2 -> 47.004 | O16: =(L16*N16) -> 0
L18: =SUM(L1:L17) -> 0 | O18: =SUM(O2:O17) -> 0

Sheet Cyclisme Vestes
A2: CYCLISME - VESTES
D5: XS | E5: S | F5: M | G5: L | H5: XL | I5: XXL | J5: XXXL | K5: XXXXL | L5: Quantité | M5: Prix Unit ht | N5: Prix Unitaire | O5: Prix Total
A6: Gilet coupe-vent sans manches - (Jouly)
C7: HOMME | L7: =SUM(D7:K7) -> 0 | M7: 39.17 | N7: =M7*1.2 -> 47.004 | O7: =(L7*N7) -> 0
C8: FEMME | L8: =SUM(D8:K8) -> 0 | M8: 39.17 | N8: =M8*1.2 -> 47.004 | O8: =(L8*N8) -> 0
A10: Veste coupe-vent - (Jouly)
C11: HOMME | L11: =SUM(D11:K11) -> 0 | M11: 45.83 | N11: =M11*1.2 -> 54.996 | O11: =(L11*N11) -> 0
C12: FEMME | L12: =SUM(D12:K12) -> 0 | M12: 45.83 | N12: =M12*1.2 -> 54.996 | O12: =(L12*N12) -> 0
A14: Gilet sans manches thermique - CS ThermoShield Winter Vest
C15: HOMME | L15: =SUM(D15:K15) -> 0 | M15: 59 | N15: =M15*1.2 -> 70.8 | O15: =(L15*N15) -> 0
C16: FEMME | L16: =SUM(D16:K16) -> 0 | M16: 59 | N16: =M16*1.2 -> 70.8 | O16: =(L16*N16) -> 0
A18: Veste thermique hiver - (Jouly)
C19: HOMME | L19: =SUM(D19:K19) -> 0 | M19: 84.17 | N19: =M19*1.2 -> 101.004 | O19: =(L19*N19) -> 0
C20: FEMME | L20: =SUM(D20:K20) -> 0 | M20: 84.17 | N20: =M20*1.2 -> 101.004 | O20: =(L20*N20) -> 0
A22: Veste de pluie transparente (K-Way) - CS Seamless Clear Rain Jacket
C23: HOMME | L23: =SUM(D23:K23) -> 0 | M23: 50 | N23: =M23*1.2 -> 60 | O23: =(L23*N23) -> 0
C24: FEMME | L24: =SUM(D24:K24) -> 0 | M24: 50 | N24: =M24*1.2 -> 60 | O24: =(L24*N24) -> 0
L26: =SUM(L1:L25) -> 0 | O26: =SUM(O2:O25) -> 0

Sheet Sportwear
A2: SPORTWEAR
D5: XS | E5: S | F5: M | G5: L | H5: XL | I5: XXL | J5: XXXL | K5: XXXXL | L5: Quantité | M5: Prix Unit ht | N5: Prix Unitaire | O5: Prix Total
A6: Sweet Capuche Girou Taymory (Tarif club 2015) | C6: (coupe EU)
C7: HOMME | L7: =SUM(D7:K7) -> 0 | M7: 24.17 | N7: =M7*1.2 -> 29.004 | O7: =(L7*N7) -> 0
C8: FEMME | L8: =SUM(D8:K8) -> 0 | M8: 24.17 | N8: =M8*1.2 -> 29.004 | O8: =(L8*N8) -> 0
A10: Sweet Capuche Girou Taymory | C10: (coupe EU)
C11: HOMME | L11: =SUM(D11:K11) -> 0 | M11: 49.17 | N11: =M11*1.2 -> 59.004 | O11: =(L11*N11) -> 0
C12: FEMME | L12: =SUM(D12:K12) -> 0 | M12: 49.17 | N12: =M12*1.2 -> 59.004 | O12: =(L12*N12) -> 0
L15: =SUM(L1:L14) -> 0 | O15: =SUM(O1:O14) -> 0
